fUST/lending_fUST_20260115
["ID","MTS","AMOUNT","RATE_DAILY","PERIOD"]
[401989707,1768443039444,-500.0,9.958e-05,2]
[401989708,1768443039455,-500.0,9.958e-05,2]
[401989709,1768443039464,-300.0,9.958e-05,2]
[401989710,1768443039474,-559.0,9.958e-05,2]
[401989711,1768443039486,-304.25251166,9.958e-05,2]
[401989712,1768443039495,-23517.2304074,9.96e-05,2]
[401989713,1768443039504,-300.0,0.00010158,2]
[401989714,1768443039514,-300.0,0.00010158,2]
[401989715,1768443039524,-300.0,0.00010158,2]
[401989716,1768443039533,-300.0,0.00010158,2]
[401989717,1768443039544,-300.0,0.00010158,2]
[401989718,1768443039553,-300.0,0.00010158,2]
[401989719,1768443039562,-300.0,0.00010158,2]
[401989720,1768443039572,-300.0,0.00010158,2]
[401989721,1768443039580,-300.0,0.00010158,2]
[401989722,1768443039590,-300.0,0.00010158,2]
[401989723,1768443039599,-300.0,0.00010158,2]
[401989724,1768443039608,-300.0,0.00010158,2]
[401989725,1768443039617,-300.0,0.00010158,2]
[401989726,1768443039627,-300.0,0.00010158,2]
[401989727,1768443039636,-300.0,0.00010158,2]
[401989728,1768443039645,-999.298191,0.00010282,2]
[401989729,1768443039655,-600.0,0.0001036,2]
[401989730,1768443039664,-500.0,0.00010632,2]
[401989731,1768443039674,-500.0,0.00010632,2]
[401989732,1768443039683,-500.0,0.00010632,2]
[401989733,1768443039692,-420.0,0.00010954,2]
[401989734,1768443039701,-255.109,0.00011069,2]
[401989735,1768443039710,-515766.39250416,0.00011295,2]
[401989736,1768443039719,-505.49381536,0.00011296,2]
[401989737,1768443039728,-720.0,0.00011396,2]
[401989738,1768443039737,-359.01796376,0.00011958,2]
[401989739,1768443039746,-587.0,0.00012049,2]
[401989740,1768443039755,-223.81638626,0.00012329,2]
[401989741,1768443039764,-864.0,0.00012536,2]
[401989742,1768443039774,-823.0,0.00013254,2]
[401989743,1768443039782,-500.63973983,0.00013273,2]
[401989744,1768443039791,-500.0,0.00013273,2]
[401989745,1768443039801,-500.0,0.00013273,2]
[401989746,1768443039810,-503.93163445,0.00013273,2]
[401989747,1768443039819,-500.0,0.00013273,2]
[401989748,1768443039828,-500.0,0.00013273,2]
[401989749,1768443039837,-500.0,0.00013273,2]
[401989750,1768443039847,-259.23463494,0.00013273,2]
[401989751,1768443039856,-500.0,0.00013273,2]
[401989752,1768443039867,-500.0,0.00013273,2]
[401989753,1768443039876,-500.0,0.00013273,2]
[401989754,1768443039885,-500.0,0.00013273,2]
[401989755,1768443039895,-500.0,0.00013273,2]
[401989756,1768443039905,-501.23190199,0.00013273,2]
[401989757,1768443039914,-500.0,0.00013273,2]
[401989758,1768443039924,-500.0,0.00013273,2]
[401989759,1768443039933,-500.0,0.00013273,2]
[401989760,1768443039942,-500.0,0.00013273,2]
[401989761,1768443039952,-500.0,0.00013273,2]
[401989762,1768443039966,-501.45177339,0.00013273,2]
[401989763,1768443039982,-500.0,0.00013273,2]
[401989764,1768443039998,-500.0,0.00013273,2]
[401989765,1768443040012,-500.0,0.00013273,2]
[401989766,1768443040022,-500.0,0.00013273,2]
[401989767,1768443040031,-500.0,0.00013273,2]
[401989768,1768443040040,-500.0,0.00013273,2]
[401989769,1768443040051,-500.0,0.00013273,2]
[401989771,1768443040061,-300.0,0.00013673,2]
[401989773,1768443040071,-5000.0,0.00013699,10]
[401989775,1768443040080,-6517.0,0.00013699,10]
[401989777,1768443040089,-1000.0,0.00013699,2]
[401989779,1768443040098,-500.0,0.00013699,2]
[401989780,1768443040107,-500.0,0.00013699,2]
[401989781,1768443040117,-500.0,0.00013699,2]
[401989782,1768443040127,-648.13731473,0.00013699,2]
[401989783,1768443040137,-500.0,0.00013699,2]
[401989784,1768443040147,-500.0,0.00013699,2]
[401989785,1768443040157,-500.0,0.00013699,2]
[401989786,1768443040168,-500.0,0.00013699,2]
[401989787,1768443040179,-502.29370929,0.00013699,2]
[401989788,1768443040188,-500.0,0.00013699,2]
[401989789,1768443040197,-153.34055531,0.00013699,2]
[401989790,1768443040208,-9196.06,0.00013775,2]
[401989791,1768443040217,-1000.0,0.00013789,2]
[401989792,1768443040228,-1553.11,0.00013803,2]
[401989793,1768443040237,-1000.0,0.00013821,2]
[401989794,1768443040246,-1000.0,0.00013821,2]
[401989795,1768443040256,-1000.0,0.00013821,2]
[401989796,1768443040265,-1000.0,0.00013821,2]
[401989797,1768443040274,-1000.0,0.00013821,2]
[401989798,1768443040283,-1000.0,0.00013821,2]
[401989799,1768443040292,-1000.0,0.00013821,2]
[401989800,1768443040304,-1000.0,0.00013821,2]
[401989801,1768443040314,-1000.0,0.00013821,2]
[401989802,1768443040323,-413.78341586,0.00013958,2]
[401989803,1768443040333,-6359.55863282,0.00013972,2]
[401989804,1768443040342,-30000.0,0.00014091,2]
[401989805,1768443040351,-151.0,0.00014091,2]
[401989806,1768443040360,-250.0,0.00014091,2]
[401989807,1768443040369,-500.0,0.00014091,2]
[401989808,1768443040379,-151.0,0.00014091,2]
[401989809,1768443040388,-250.0,0.00014091,2]
[401989810,1768443040397,-461.67526834,0.00014091,2]
[401989811,1768443040407,-500.0,0.00014091,2]
[401989812,1768443040419,-298.12344645,0.00014091,2]
[401989813,1768443040428,-151.0,0.00014091,2]
[401989814,1768443040437,-250.0,0.00014091,2]
[401989815,1768443040446,-500.0,0.00014091,2]
[401989816,1768443040455,-151.0,0.00014091,2]
[401989817,1768443040464,-250.0,0.00014091,2]
[401989818,1768443040473,-500.0,0.00014091,2]
[401989819,1768443040483,-151.0,0.00014091,2]
[401989821,1768443040493,-254.96981269,0.00014091,2]
[401989822,1768443040502,-250.0,0.00014091,2]
[401989823,1768443040511,-2230.315306,0.00014091,2]
[401989824,1768443040520,-500.0,0.00014091,2]
[401989825,1768443040529,-160.0,0.00014091,2]
[401989826,1768443040538,-151.0,0.00014091,2]
[401989827,1768443040548,-500.0,0.00014091,2]
[401989828,1768443040557,-250.0,0.00014091,2]
[401989829,1768443040567,-168.3888056,0.00014091,2]
[401989830,1768443040576,-160.0,0.00014091,2]
[401989831,1768443040585,-151.0,0.00014091,2]
[401989832,1768443040594,-500.0,0.00014091,2]
[401989833,1768443040603,-174.61919141,0.00014091,2]
[401989834,1768443040613,-164.53858348,0.00014091,2]
[401989835,1768443040622,-151.0,0.00014091,2]
[401989836,1768443040631,-250.0,0.00014091,2]
[401989837,1768443040640,-500.0,0.00014091,2]
[401989838,1768443040649,-181.08010149,0.00014091,2]
[401989839,1768443040659,-151.0,0.00014091,2]
[401989840,1768443040668,-255.52951771,0.00014091,2]
[401989841,1768443040677,-275.01030172,0.00014091,2]
[401989842,1768443040686,-500.0,0.00014091,2]
[401989843,1768443040695,-187.78006525,0.00014091,2]
[401989844,1768443040705,-151.0,0.00014091,2]
[401989845,1768443040714,-500.0,0.00014091,2]
[401989846,1768443040723,-194.72792766,0.00014091,2]
[401989847,1768443040732,-151.0,0.00014091,2]
[401989848,1768443040741,-500.0,0.00014091,2]
[401989849,1768443040750,-201.93286099,0.00014091,2]
[401989852,1768443040916,-151.0,0.00014091,2]
[401989855,1768443040932,-151.0,0.00014091,2]
[401989856,1768443040942,-500.0,0.00014091,2]
[401989857,1768443040951,-151.0,0.00014091,2]
[401989858,1768443040960,-209.40437684,0.00014091,2]
[401989859,1768443040969,-250.0,0.00014091,2]
[401989860,1768443040979,-151.0,0.00014091,2]
[401989861,1768443040988,-500.0,0.00014091,2]
[401989862,1768443040998,-217.15233878,0.00014091,2]
[401989863,1768443041007,-250.0,0.00014091,2]
[401989864,1768443041016,-151.0,0.00014091,2]
[401989865,1768443041025,-248.00843886,0.00014091,2]
[401989866,1768443041035,-500.0,0.00014091,2]
[401989867,1768443041043,-261.05405459,0.00014091,2]
[401989868,1768443041052,-225.18697532,0.00014091,2]
[401989869,1768443041061,-151.0,0.00014091,2]
[401989870,1768443041071,-1957.856,0.00014091,2]
[401989871,1768443041080,-500.0,0.00014091,2]
[401989872,1768443041089,-233.51889341,0.00014091,2]
[401989873,1768443041098,-151.0,0.00014091,2]
[401989874,1768443041107,-500.0,0.00014091,2]
[401989875,1768443041116,-242.15909246,0.00014091,2]
[401989876,1768443041125,-151.0,0.00014091,2]
[401989877,1768443041134,-500.0,0.00014091,2]
[401989878,1768443041144,-251.11897888,0.00014091,2]
[401989879,1768443041153,-151.0,0.00014091,2]
[401989880,1768443041162,-260.4103811,0.00014091,2]
[401989881,1768443041171,-151.0,0.00014091,2]
[401989882,1768443041180,-270.0455652,0.00014091,2]
[401989883,1768443041189,-151.0,0.00014091,2]
[401989884,1768443041198,-280.03725112,0.00014091,2]
[401989885,1768443041207,-165.20653775,0.00014091,2]
[401989886,1768443041216,-290.39862941,0.00014091,2]
[401989887,1768443041226,-301.1433787,0.00014091,2]
[401989888,1768443041235,-153.62275717,0.00014091,2]
[401989889,1768443041244,-168.3888056,0.00014091,2]
[401989890,1768443041254,-250.0,0.00014091,2]
[401989891,1768443041263,-250.0,0.00014091,2]
[401989892,1768443041273,-2030.296672,0.00014146,2]
[401989893,1768443041282,-2105.41764886,0.00014201,2]
[401989894,1768443041291,-600.0,0.00014221,2]
[401989895,1768443041301,-325.29111599,0.00014247,2]
[401989896,1768443041310,-1000.0,0.00014247,2]
[401989897,1768443041319,-1000.0,0.00014247,2]
[401989898,1768443041329,-1000.0,0.00014247,2]
[401989899,1768443041338,-1000.0,0.00014247,2]
[401989900,1768443041347,-1000.0,0.00014247,2]
[401989901,1768443041357,-950.26471864,0.00014247,2]
[401989902,1768443041366,-1000.0,0.00014247,2]
[401989903,1768443041375,-401.39598933,0.00014256,2]
[401989904,1768443041384,-100000.0,0.00014298,2]
[401989905,1768443041394,-1500.0,0.00014368,2]
[401989906,1768443041403,-782.26163417,0.00014368,2]
[401989907,1768443041415,-1500.0,0.00014368,2]
[401989908,1768443041428,-1500.0,0.00014368,2]
[401989909,1768443041437,-1288.90612665,0.00014368,2]
[401989910,1768443041447,-1500.0,0.00014368,2]
[401989911,1768443041457,-503.74814692,0.00014368,2]
[401989912,1768443041466,-1500.0,0.00014368,2]
[401989913,1768443041476,-1500.0,0.00014368,2]
[401989914,1768443041486,-5000.0,0.0001451,2]
[401989915,1768443041495,-1152.0,0.00014579,2]
[401989916,1768443041504,-31110.0,0.00014639,2]
[401989917,1768443041514,-478.75725327,0.00014639,2]
[401989918,1768443041523,-2312.83697232,0.00014639,2]
[401989919,1768443041532,-174.61919141,0.00014639,2]
[401989920,1768443041542,-505.49381533,0.00014672,2]
[401989921,1768443041551,-900.0,0.00014768,2]
[401989922,1768443041560,-1500.0,0.00014795,2]
[401989923,1768443041570,-1500.0,0.00014795,2]
[401989924,1768443041579,-1500.0,0.00014795,2]
[401989925,1768443041588,-1001.52518289,0.00014795,2]
[401989926,1768443041597,-551.64021552,0.00014795,2]
[401989927,1768443041607,-1500.0,0.00014795,2]
[401989928,1768443041615,-2000.0,0.00014916,2]
[401989929,1768443041625,-2000.0,0.00014916,2]
[401989930,1768443041634,-2000.0,0.00014916,2]
[401989931,1768443041643,-419.94044877,0.00014916,2]
[401989932,1768443041651,-2000.0,0.00014916,2]
[401989933,1768443041660,-1211.87495986,0.00014916,2]
[401989934,1768443041669,-800.0,0.00015068,2]
[401989935,1768443041679,-1000.0,0.00015168,2]
[401989936,1768443041688,-244.0,0.00015168,2]
[401989937,1768443041697,-32261.07,0.00015187,2]
[401989938,1768443041706,-496.47127164,0.00015187,2]
[401989939,1768443041715,-2398.4119403,0.00015187,2]
[401989940,1768443041724,-181.08010149,0.00015187,2]
[401989941,1768443041733,-1200.0,0.00015316,2]
[401989942,1768443041742,-375.63474498,0.00015342,2]
[401989943,1768443041752,-2000.0,0.00015342,2]
[401989944,1768443041762,-2000.0,0.00015342,2]
[401989945,1768443041771,-2000.0,0.00015342,2]
[401989946,1768443041780,-2500.0,0.00015464,2]
[401989947,1768443041790,-2500.0,0.00015464,2]
[401989948,1768443041799,-2500.0,0.00015464,2]
[401989949,1768443041809,-2500.0,0.00015464,2]
[401989950,1768443041818,-195.28192685,0.00015735,2]
[401989951,1768443041827,-514.84070869,0.00015735,2]
[401989952,1768443041836,-2487.15318209,0.00015735,2]
[401989953,1768443041846,-187.78006525,0.00015735,2]
[401989954,1768443041855,-1500.0,0.00015864,2]
[401989955,1768443041864,-482.37220676,0.00015884,2]
[401989956,1768443041874,-2500.0,0.0001589,2]
[401989957,1768443041883,-2323.07474413,0.0001589,2]
[401989958,1768443041892,-2500.0,0.0001589,2]
[401989959,1768443041902,-468.54886796,0.00015958,2]
[401989960,1768443041911,-3000.0,0.00016012,2]
[401989961,1768443041920,-3000.0,0.00016012,2]
[401989962,1768443041930,-3000.0,0.00016012,2]
[401989963,1768443041939,-3000.0,0.00016012,2]
[401989964,1768443041948,-1613.0,0.00016037,2]
[401989965,1768443041957,-1600.0,0.00016164,2]
[401989966,1768443041967,-533.88981491,0.00016283,2]
[401989967,1768443041976,-1131.94580454,0.00016283,2]
[401989968,1768443041986,-194.72792766,0.00016283,2]
[401989969,1768443041995,-1800.0,0.00016412,2]
[401989970,1768443042005,-500.0,0.00016438,2]
[401989971,1768443042014,-500.0,0.00016438,2]
[401989972,1768443042024,-500.0,0.00016438,2]
[401989973,1768443042033,-566.63277747,0.00016438,2]
[401989974,1768443042042,-500.0,0.00016438,2]
[401989975,1768443042052,-500.0,0.00016438,2]
[401989976,1768443042062,-595.54313573,0.00016438,2]
[401989977,1768443042071,-200.0,0.00016438,2]
[401989978,1768443042080,-3000.0,0.00016438,2]
[401989979,1768443042090,-3000.0,0.00016438,2]
[401989980,1768443042098,-260.36260425,0.00016438,2]
[401989981,1768443042108,-868.26997216,0.00016454,2]
[401989982,1768443042117,-3597.65805404,0.0001656,2]
[401989983,1768443042126,-3500.0,0.0001656,2]
[401989984,1768443042135,-3500.0,0.0001656,2]
[401989985,1768443042144,-3500.0,0.0001656,2]
[401989986,1768443042153,-1000.0,0.00016685,2]
[401989987,1768443042162,-492.0,0.00016685,2]
[401989988,1768443042171,-553.64373807,0.00016831,2]
[401989989,1768443042181,-201.93286099,0.00016831,2]
[401989990,1768443042190,-2100.0,0.0001696,2]
[401989991,1768443042199,-3500.0,0.00016986,2]
[401989992,1768443042208,-3500.0,0.00016986,2]
[401989993,1768443042218,-1543.59106163,0.00017024,2]
[401989994,1768443042227,-4000.0,0.00017108,2]
[401989995,1768443042236,-4000.0,0.00017108,2]
[401989996,1768443042246,-4000.0,0.00017108,2]
[401989997,1768443042255,-2400.0,0.0001726,2]
[401989998,1768443042264,-574.12855637,0.00017379,2]
[401989999,1768443042273,-209.40437684,0.00017379,2]
[401990000,1768443042282,-151.0,0.000174,2]
[401990001,1768443042292,-5000.0,0.00017412,2]
[401990002,1768443042301,-2400.0,0.00017508,2]
[401990003,1768443042310,-400.0,0.00017534,2]
[401990004,1768443042319,-4000.0,0.00017534,2]
[401990005,1768443042328,-4000.0,0.00017534,2]
[401990006,1768443042339,-561.40319957,0.00017583,5]
[401990007,1768443042350,-2411.86103379,0.00017595,2]
[401990008,1768443042359,-2258.0,0.00017641,2]
[401990009,1768443042369,-4551.18839643,0.00017656,2]
[401990010,1768443042378,-4500.0,0.00017656,2]
[401990011,1768443042388,-4500.0,0.00017656,2]
[401990012,1768443042397,-595.37131296,0.00017927,2]
[401990013,1768443042407,-217.15233878,0.00017927,2]
[401990014,1768443042418,-523.31432006,0.00017958,2]
[401990015,1768443042428,-150.59721012,0.00017973,2]
[401990016,1768443042438,-505.49381533,0.00018048,2]
[401990017,1768443042447,-461.86902697,0.00018056,2]
[401990018,1768443042457,-4500.0,0.00018082,2]
[401990019,1768443042467,-4500.0,0.00018082,2]
[401990020,1768443042476,-3473.07988866,0.00018165,2]
[401990021,1768443042486,-5000.0,0.00018204,2]
[401990022,1768443042497,-5000.0,0.00018204,2]
[401990023,1768443042507,-1000.0,0.00018354,2]
[401990024,1768443042517,-791.0,0.00018354,2]
[401990025,1768443042526,-1109.72122822,0.00018356,2]
[401990026,1768443042535,-617.40005154,0.00018475,2]
[401990027,1768443042545,-225.18697532,0.00018475,2]
[401990028,1768443042554,-1041.66666667,0.00018606,2]
[401990029,1768443042563,-600.0,0.0001863,2]
[401990030,1768443042572,-5000.0,0.0001863,2]
[401990031,1768443042582,-5000.0,0.0001863,2]
[401990032,1768443042591,-4727.24762623,0.00018735,2]
[401990033,1768443042600,-5500.0,0.00018752,2]
[401990034,1768443042609,-5500.0,0.00018752,2]
[401990035,1768443042619,-2824.86657487,0.00018863,2]
[401990036,1768443042628,-303.10001603,0.000189,2]
[401990037,1768443042636,-640.24385345,0.00019023,2]
[401990038,1768443042645,-233.51889341,0.00019023,2]
[401990039,1768443042655,-69100.09456,0.00019023,7]
[401990040,1768443042663,-303.10001603,0.00019089,2]
[401990041,1768443042672,-507.2385,0.00019178,2]
[401990042,1768443042680,-200.0,0.00019178,2]
[401990043,1768443042690,-507.2385,0.00019178,2]
[401990044,1768443042698,-507.2385,0.00019178,2]
[401990045,1768443042707,-507.2385,0.00019178,2]
[401990046,1768443042716,-507.2385,0.00019178,2]
[401990047,1768443042726,-507.2385,0.00019178,2]
[401990048,1768443042735,-507.2385,0.00019178,2]
[401990049,1768443042745,-507.2385,0.00019178,2]
[401990050,1768443042754,-845.3974,0.00019178,2]
[401990051,1768443042763,-845.3974,0.00019178,2]
[401990052,1768443042772,-845.3974,0.00019178,2]
[401990053,1768443042781,-778.0,0.00019178,2]
[401990054,1768443042791,-1914.6506363,0.00019178,2]
[401990055,1768443042800,-5500.0,0.00019178,2]
[401990056,1768443042809,-167.84,0.000192,2]
[401990057,1768443042818,-201.61,0.000192,2]
[401990058,1768443042827,-3527.33,0.000192,2]
[401990059,1768443042836,-177.17,0.000192,2]
[401990060,1768443042845,-26966.75,0.000192,2]
[401990061,1768443042854,-303.10001603,0.00019278,2]
[401990062,1768443042863,-1088.20360307,0.000193,2]
[401990063,1768443042872,-6000.0,0.000193,2]
[401990064,1768443042881,-6174.3642465,0.00019305,2]
[401990065,1768443042889,-133827.9624,0.00019405,7]
[401990066,1768443042898,-3162.0,0.00019405,2]
[401990067,1768443042907,-303.10001603,0.00019467,2]
[401990068,1768443042916,-2245.61279829,0.00019544,5]
[401990069,1768443042926,-663.93287602,0.00019571,2]
[401990070,1768443042934,-242.15909246,0.00019571,2]
[401990071,1768443042943,-303.10001603,0.00019656,2]
[401990072,1768443042951,-612.4,0.00019719,2]
[401990073,1768443042960,-800.0,0.00019726,2]
[401990074,1768443042969,-201.03509286,0.00019726,2]
[401990075,1768443042979,-250.0,0.00019726,2]
[401990076,1768443042987,-6000.0,0.00019726,2]
[401990077,1768443042997,-454.65002405,0.00019845,4]
[401990078,1768443043006,-6500.0,0.00019848,2]
[401990079,1768443043015,-402.33,0.00019848,2]
[401990080,1768443043023,-7814.42974948,0.00019875,2]
[401990081,1768443043032,-578.07977216,0.00019958,2]
[401990082,1768443043041,-507.2385,0.0002,4]
[401990083,1768443043050,-507.2385,0.0002,4]
[401990084,1768443043059,-507.2385,0.0002,4]
[401990085,1768443043067,-507.2385,0.0002,4]
[401990086,1768443043077,-502.66,0.0002,2]
[401990087,1768443043085,-507.2385,0.0002,4]
[401990088,1768443043094,-500.0,0.0002,2]
[401990089,1768443043103,-151.61289297,0.0002,2]
[401990090,1768443043112,-507.2385,0.0002,4]
[401990091,1768443043120,-507.2385,0.0002,4]
[401990092,1768443043128,-300.0,0.0002,2]
[401990093,1768443043137,-845.3974,0.0002,4]
[401990094,1768443043146,-845.3974,0.0002,4]
[401990095,1768443043155,-845.3974,0.0002,4]
[401990096,1768443043163,-339.47924352,0.00020034,4]
[401990097,1768443043172,-688.49839244,0.00020119,2]
[401990098,1768443043181,-266.78624788,0.00020119,2]
[401990099,1768443043191,-1000.0,0.00020189,2]
[401990100,1768443043234,-1000.0,0.00020189,2]
[401990101,1768443043244,-350.0,0.00020274,2]
[401990102,1768443043252,-6500.0,0.00020274,2]
[401990103,1768443043262,-26966.75,0.000203,2]
[401990104,1768443043271,-3699.62611499,0.00020396,2]
[401990105,1768443043279,-507.2385,0.00020411,5]
[401990107,1768443043288,-507.2385,0.00020411,5]
[401990109,1768443043297,-507.2385,0.00020411,5]
[401990111,1768443043307,-507.2385,0.00020411,5]
[401990113,1768443043315,-845.3974,0.00020411,5]
[401990115,1768443043325,-845.3974,0.00020411,5]
[401990117,1768443043333,-845.3974,0.00020411,5]
[401990118,1768443043343,-9647.44413516,0.00020445,2]
[401990120,1768443043352,-201.61,0.000205,2]
[401990122,1768443043361,-3527.33,0.000205,2]
[401990124,1768443043370,-177.17,0.000205,2]
[401990125,1768443043378,-16977.175562,0.000205,7]
[401990126,1768443043387,-612.4,0.00020666,2]
[401990127,1768443043396,-713.97283296,0.00020667,2]
[401990129,1768443043405,-157.65652764,0.00020744,5]
[401990131,1768443043415,-2936.6754219,0.0002076,2]
[401990133,1768443043427,-1000.0,0.00020822,2]
[401990135,1768443043436,-450.0,0.00020822,2]
[401990136,1768443043445,-7000.0,0.00020822,2]
[401990138,1768443043455,-2936.6754219,0.00020984,2]
[401990140,1768443043464,-11673.40740354,0.00021015,2]
[401990141,1768443043473,-29089.554144,0.000212,7]
[401990142,1768443043482,-1201.527246,0.000212,2]
[401990143,1768443043493,-1201.527246,0.000212,2]
[401990144,1768443043502,-1201.527246,0.000212,2]
[401990145,1768443043512,-1201.527246,0.000212,2]
[401990146,1768443043521,-2936.6754219,0.00021213,2]
[401990147,1768443043531,-740.38982778,0.00021215,2]
[401990148,1768443043541,-544.434142,0.00021233,2]
[401990149,1768443043550,-1862.0,0.00021346,2]
[401990150,1768443043560,-550.0,0.0002137,2]
[401990151,1768443043569,-7500.0,0.0002137,2]
[401990152,1768443043578,-157.65652763,0.00021386,5]
[401990153,1768443043587,-602.0059149,0.00021397,2]
[401990154,1768443043596,-505.49381533,0.00021424,2]
[401990155,1768443043605,-5052.62879615,0.00021504,5]
[401990156,1768443043615,-2936.6754219,0.00021538,2]
[401990157,1768443043625,-612.4,0.00021613,2]
[401990158,1768443043634,-652.6622264,0.00021763,2]
[401990159,1768443043643,-26966.75,0.000218,2]
[401990160,1768443043652,-2936.67542191,0.00021805,2]
[401990161,1768443043662,-336.68,0.00021856,2]
[401990162,1768443043671,-28791.706066,0.00021876,7]
[401990163,1768443043680,-275.55471384,0.00021918,2]
[401990164,1768443043690,-151.0,0.00021918,2]
[401990165,1768443043699,-151.0,0.00021918,2]
[401990166,1768443043709,-151.112222,0.00021918,2]
[401990167,1768443043719,-151.0,0.00021918,2]
[401990168,1768443043727,-151.0,0.00021918,2]
[401990169,1768443043737,-151.0,0.00021918,2]
[401990170,1768443043747,-649.149683,0.00021918,2]
[401990171,1768443043755,-649.149683,0.00021918,2]
[401990172,1768443043765,-649.149683,0.00021918,2]
[401990173,1768443043776,-649.149683,0.00021918,2]
[401990174,1768443043785,-151.0,0.00021918,2]
[401990175,1768443043794,-213.542319,0.00021918,2]
[401990176,1768443043803,-151.0,0.00021918,2]
[401990177,1768443043812,-213.542319,0.00021918,2]
[401990178,1768443043822,-151.0,0.00021918,2]
[401990179,1768443043831,-213.542319,0.00021918,2]
[401990180,1768443043842,-213.542319,0.00021918,2]
[401990181,1768443043852,-1417.242124,0.00021918,2]
[401990182,1768443043861,-1417.242124,0.00021918,2]
[401990183,1768443043871,-1417.242124,0.00021918,2]
[401990184,1768443043880,-1417.242124,0.00021918,2]
[401990186,1768443043889,-151.0,0.00021918,2]
[401990187,1768443043898,-228.613704,0.00021918,2]
[401990188,1768443043907,-288.58596,0.00021918,2]
[401990189,1768443043916,-151.0,0.00021918,2]
[401990191,1768443043926,-151.0,0.00021918,2]
[401990192,1768443043935,-151.0,0.00021918,2]
[401990193,1768443043944,-188.048775,0.00021918,2]
[401990194,1768443043954,-241.138234,0.00021918,2]
[401990196,1768443043963,-151.0,0.00021918,2]
[401990197,1768443043972,-475.009948,0.00021918,2]
[401990198,1768443043981,-475.009948,0.00021918,2]
[401990199,1768443043991,-475.009948,0.00021918,2]
[401990200,1768443043999,-475.009948,0.00021918,2]
[401990201,1768443044009,-151.0,0.00021918,2]
[401990202,1768443044018,-157.21855,0.00021918,2]
[401990203,1768443044028,-151.0,0.00021918,2]
[401990204,1768443044037,-151.0,0.00021918,2]
[401990205,1768443044046,-151.0,0.00021918,2]
[401990206,1768443044055,-151.0,0.00021918,2]
[401990207,1768443044064,-152.929752,0.00021918,2]
[401990208,1768443044074,-172.511817,0.00021918,2]
[401990209,1768443044083,-288.636668,0.00021918,2]
[401990210,1768443044092,-1200.0,0.00021918,2]
[401990211,1768443044102,-650.0,0.00021918,2]
[401990212,1768443044111,-8000.0,0.00021918,2]
[401990213,1768443044120,-153.0,0.00021918,2]
[401990214,1768443044129,-602.0059149,0.00021918,2]
[401990215,1768443044138,-153.0,0.00021918,2]
[401990216,1768443044147,-602.0059149,0.00021918,2]
[401990217,1768443044156,-155.6219387,0.00021918,2]
[401990218,1768443044165,-616.2611004,0.00021918,2]
[401990219,1768443044173,-153.0,0.00021918,2]
[401990220,1768443044182,-602.0059149,0.00021918,2]
[401990221,1768443044192,-253.9043756,0.00021918,2]
[401990222,1768443044201,-1014.60188488,0.00021918,2]
[401990223,1768443044210,-632.84522426,0.00021958,2]
[401990224,1768443044219,-36359.6351206,0.00021959,2]
[401990225,1768443044229,-151.0,0.00021959,2]
[401990226,1768443044238,-151.0,0.00021959,2]
[401990227,1768443044248,-151.0,0.00021959,2]
[401990228,1768443044257,-151.0,0.00021959,2]
[401990229,1768443044267,-178.114767,0.00021959,2]
[401990230,1768443044277,-475.009948,0.00021959,2]
[401990231,1768443044286,-475.009948,0.00021959,2]
[401990232,1768443044295,-475.009948,0.00021959,2]
[401990233,1768443044305,-475.009948,0.00021959,2]
[401990234,1768443044315,-151.0,0.00021959,2]